Cogmind - Beta 13 @@@ ROGUE MODE // 2024.05.06 @ 22:50:24 Player: Toa of Guts Result: Destroyed by U8-G8K(R) with Subdweller Beam Cannon Performance ------------- Evolutions (0) 0 Regions Visited (2) 400 Robots Destroyed (20) 100 Value Destroyed (473) 473 Prototype IDs (2) 40 Alien Tech Used (0) 0 Bonus (0) 0 TOTAL SCORE: 1013 Bonus ------- None Cogmind --------- Core Integrity 0/250 Matter 296/300 Energy 125/125 System Corruption 0% Temperature Cool (9) Movement Treading (160) Location -10/Subcaves Parts ------- > --- POWER (1) -------- Light Ion Engine > --- PROPULSION (2) --- Light Treads Improved Treads > --- UTILITY (2) ------ Large Storage Unit Structural Scanner > --- WEAPON (2) ------- Assault Rifle Battle Cannon > --- INVENTORY (15) --- Subdweller Power Source Light Treads Improved Treads Compact Wheel High-capacity Matter Pod (103) Subdweller Optics Makeshift System Shield Medium Laser Subdweller Beam Cannon Light Assault Rifle Grenade Launcher Grenade Launcher Scrap Shield Fragment (46) Peak State ------------ > --- POWER ------------ Subdweller Power Source > --- PROPULSION ------- Light Treads Improved Treads > --- UTILITY ---------- Large Storage Unit Subdweller Optics > --- WEAPON ----------- Subdweller Beam Cannon Assault Rifle > --- INVENTORY -------- Light Ion Engine Light Treads Improved Treads Compact Wheel High-capacity Matter Pod Structural Scanner Subdweller Optics Makeshift System Shield Medium Laser Assault Rifle Light Assault Rifle Battle Cannon Grenade Launcher Grenade Launcher Scrap Shield Fragment [Rating: 13] Favorites ----------- Power Light Ion Engine Engine Light Ion Engine Propulsion Improved Treads Treads Improved Treads Leg Aluminum Leg Utility Large Storage Unit Device Seismic Detector Storage Large Storage Unit Weapon Assault Rifle Energy Gun Medium Laser Energy Cannon Subdweller Beam Cannon Ballistic Gun Assault Rifle Ballistic Cannon Battle Cannon Build | -11 -10 -10 ------- Run | Yrd Mat Sub Slots Evolved . | . . . Power . | . . . Propulsion . | . . . Utility . | . . . Weapon . | . . . Parts Attached 27 | 6 7 14 Power 4 | 1 1 2 Engine 4 | 1 1 2 Core . | . . . Reactor . | . . . Propulsion 7 | 2 2 3 Treads 5 | . 2 3 Leg 2 | 2 . . Wheel . | . . . Hover . | . . . Flight . | . . . Utility 6 | 1 2 3 Device 4 | . 1 3 Storage 2 | 1 1 . Processor . | . . . Hackware . | . . . Protection . | . . . Artifact . | . . . Weapon 10 | 2 2 6 Energy Gun 2 | 1 . 1 Energy Cannon 1 | . . 1 Ballistic Gun 6 | 1 2 3 Ballistic Cannon 1 | . . 1 Launcher . | . . . Special Weapon . | . . . Impact Weapon . | . . . Slashing Weapon . | . . . Piercing Weapon . | . . . Special Melee Weapon . | . . . Unidentified Prototypes . | . . . Parts Lost 9 | . 1 8 Power 2 | . . 2 Propulsion 2 | . . 2 Utility 1 | . . 1 Weapon 4 | . 1 3 Highest Loss Streak 6 | . 1 6 To Critical Strikes 2 | . 1 1 Average Slot Usage (%) 97 | . 98 96 Engine 13 | . 14 13 Treads 22 | . 18 27 Leg 5 | . 9 . Device 12 | . 12 12 Storage 14 | . 14 14 Energy Gun 1 | . . 3 Ballistic Gun 24 | . 27 20 Ballistic Cannon 1 | . . 3 Naked Turns . | . . . Heaviest Build 37 | 12 28 37 Greatest Support 46 | 20 46 46 Greatest Overweight (x) 1 | . . 1 Average Overweight (x) . | . . . Largest Inventory Capacity 15 | 8 15 15 Average Capacity 13 | 6 11 15 Most Carried 15 | 6 12 15 Average Carried 10 | 4 9 13 Final Capacity 15 | 8 15 15 Final Carried 13 | 6 12 13 Class Distribution -------------------- 100% | Mutant Dominant Class ---------------- Mutant | -10/Materials Mutant | -10/Subcaves Resources | -11 -10 -10 ----------- Run | Yrd Mat Sub Matter Collected 1040 | 209 404 427 Remotely . | . . . Salvage Created 617 | . 387 230 Parts 46 | . 31 15 Haulers Intercepted 1 | . 1 . Recyclers Shooed . | . . . Parts Field Recycled . | . . . Retrieved Matter . | . . . Parts Self-Destructed 9 | . . 9 Prevented . | . . . Kills | -11 -10 -10 ------- Run | Yrd Mat Sub Combat Hostiles Destroyed 18 | . 13 5 Guns 18 | . 13 5 Classes Destroyed 6 | . 4 2 Hauler 1 | . 1 . Watcher 1 | . 1 . Swarmer 8 | . 8 . Grunt 5 | . 5 . Sentry 1 | . . 1 Subdweller 4 | . . 4 Best Kill Streak 3 | . 3 1 Combat Bots Only 3 | . 3 1 Max Kills in Single Turn 1 | . 1 1 Gunslinging . | . . . Exploded . | . . . Melee . | . . . Uniques/NPCs Destroyed . | . . . Combat | -11 -10 -10 -------- Run | Yrd Mat Sub Hostile Shots Fired 127 | . 54 73 Missed 27 | . 15 12 Damage Taken 1558 | . 382 1176 Core 255 | . 46 209 Absorbed by Shields . | . . . Core Remaining (%) 100 | 100 . . Volleys Fired 95 | . 49 46 Largest 2 | . 2 2 Hottest 80 | . 40 80 Shots Fired 181 | . 96 85 Gun 174 | . 96 78 Cannon 7 | . . 7 Launcher . | . . . Special . | . . . Kinetic 170 | . 96 74 Thermal 11 | . . 11 Explosive . | . . . Electromagnetic . | . . . Robot Hit Streak 46 | . 16 46 Robot Miss Streak 4 | . 4 1 Penetration Max . | . . . Secondary Targets 1 | . . 1 Max Gunslinging Chain 1 | . . 1 Shots Hit Robots 139 | . 66 73 Core Hits 31 | . 20 11 Critical Kills 1 | . 1 . Critical Parts Destroyed . | . . . Critical Strikes 1 | . 1 . Destroy 1 | . 1 . Melee Attacks . | . . . Impact . | . . . Slashing . | . . . Piercing . | . . . Sneak Attacks . | . . . Combat Hostiles . | . . . Follow-up Attacks . | . . . Damage Inflicted 1380 | . 807 573 Guns 1334 | . 807 527 Cannons 46 | . . 46 Explosions . | . . . Melee . | . . . Ramming . | . . . Kinetic 1305 | . 807 498 Thermal 75 | . . 75 Explosive . | . . . Electromagnetic . | . . . Impact . | . . . Slashing . | . . . Piercing . | . . . Highest Corruption . | . . . Average Corruption . | . . . Corruption Purged . | . . . Corruption Blocked . | . . . Overload Shots . | . . . Overflow Damage . | . . . Projectiles . | . . . Explosions . | . . . Melee . | . . . Knockbacks 2 | . . 2 Impact . | . . . Kinetic 2 | . . 2 Secondary . | . . . Self-Inflicted Damage . | . . . Shots . | . . . Rammed . | . . . Targets Rammed . | . . . Kicked . | . . . Crushed . | . . . Highest Temperature . | . . . Average Temperature . | . . . Received Heat Transfer 492 | . 150 342 Siege Activations . | . . . Robots Corrupted . | . . . Combat Hostiles . | . . . Parts Fried . | . . . Impact Corruptions . | . . . Robots Melted . | . . . Combat Hostiles . | . . . Parts Melted 1 | . . 1 Heat Transferred 222 | . . 222 Parts Sabotaged . | . . . Parts Stolen . | . . . Parts Stripped . | . . . Power Chain Reactions . | . . . Alert | -11 -10 -10 ------- Run | Yrd Mat Sub Peak Influence 254 | . 254 . Initial . | . . . Average 99 | . 103 . Maximum Alert Level 1 | . 1 . Low Security (%) 84 | 100 83 . Level 1 15 | . 16 . Level 2 . | . . . Level 3 . | . . . Level 4 . | . . . Level 5 . | . . . High Security . | . . . Max Security . | . . . Squads Dispatched 2 | . 2 . Investigation . | . . . Extermination . | . . . Reinforcement 2 | . 2 . Assault . | . . . Garrison . | . . . Intercept . | . . . Searches Triggered . | . . . Construction Impeded . | . . . Haulers Reinforced . | . . . Active Scanning Responses . | . . . Cargo Convoy Interrupts . | . . . Stealth | -11 -10 -10 --------- Run | Yrd Mat Sub Distress Signals 1 | . 1 . Communications Jammed . | . . . Distress Signals . | . . . Times Spotted 31 | . 24 7 Peak Tracking Total 3 | . 3 2 Tactical Retreats 1 | . 1 . Traps | -11 -10 -10 ------- Run | Yrd Mat Sub Traps Triggered . | . . . Indirectly . | . . . Trap Hack Attempts . | . . . Triggered . | . . . Disarmed . | . . . Reprogrammed . | . . . Reused . | . . . Traps Extracted . | . . . Installed . | . . . Triggered . | . . . Machines | -11 -10 -10 ---------- Run | Yrd Mat Sub Machines Disabled . | . . . Max in Single Turn . | . . . Machines Repaired . | . . . Machines Dismantled . | . . . Machines Sabotaged . | . . . Overloaded Fab Kills . | . . . Hacking | -11 -10 -10 --------- Run | Yrd Mat Sub Machines Accessed 7 | . 7 . Terminals 7 | . 7 . Fabricators . | . . . Repair Stations . | . . . Recycling Units . | . . . Scanalyzers . | . . . Garrison Access . | . . . Total Hacks 19 | . 19 . Successful 13 | . 13 . Failed 6 | . 6 . Catastrophic . | . . . Database Lockouts . | . . . Manual 8 | . 8 . Terminals 19 | . 19 . Fabricators . | . . . Repair Stations . | . . . Recycling Units . | . . . Scanalyzers . | . . . Garrison Access . | . . . Terminal Hacks 13 | . 13 . Robot Analysis 4 | . 4 . Prototype ID Bank 1 | . 1 . Emergency Access Points 1 | . 1 . Unreport Threat 1 | . 1 . Locate Traps 4 | . 4 . Zone Layout 2 | . 2 . Fabricator Hacks . | . . . Repair Station Hacks . | . . . Recycling Unit Hacks . | . . . Scanalyzer . | . . . Garrison Access Hacks . | . . . Unauthorized Hacks . | . . . Terminals . | . . . Fabricators . | . . . Repair Stations . | . . . Recycling Units . | . . . Scanalyzers . | . . . Garrison Access . | . . . Data Cores Recovered . | . . . Used . | . . . Hacking Detections 6 | . 6 . Full Trace Events . | . . . Feedback Events . | . . . Feedback Blocked . | . . . Robot Schematics Acquired . | . . . Robots Built . | . . . Authchips . | . . . Time . | . . . Total Robot Build Rating . | . . . Part Schematics Acquired . | . . . Parts Built . | . . . Authchips . | . . . Time . | . . . Total Part Build Rating . | . . . Parts Repaired . | . . . Time . | . . . Parts Recycled . | . . . Recycled Matter . | . . . Retrieved Matter . | . . . Retrieved Components . | . . . Parts Scanalyzed . | . . . Part Schematics Acquired . | . . . Parts Damaged . | . . . Bothacking | -11 -10 -10 ------------ Run | Yrd Mat Sub Used RIF Installer . | . . . Robots Hacked . | . . . Non-combat . | . . . Combat . | . . . Robot Hacks Applied . | . . . Relay Couplers Released . | . . . Fabnet Peak Effective % . | . . . Robots Rewired . | . . . Allies Hacked . | . . . Hacks Repelled . | . . . Allies | -11 -10 -10 -------- Run | Yrd Mat Sub Total Allies . | . . . Largest Group . | . . . Highest-Rated Group . | . . . Highest-Rated Ally . | . . . Total Orders . | . . . Ally Attacks . | . . . Total Damage . | . . . Kills . | . . . Allies Corrupted . | . . . Allies Melted . | . . . Intel | -11 -10 -10 ------- Run | Yrd Mat Sub Robot Analysis Total 4 | . 4 . Derelict Logs Recovered . | . . . Drone Launches . | . . . Drone Recoveries . | . . . Exploration | -11 -10 -10 ------------- Run | Yrd Mat Sub Turns Passed 2209 | 60 1222 927 Spaces Moved 1031 | 42 566 423 Core 8 | 8 . . Treads 737 | . 314 423 Legs 286 | 34 252 . Wheels . | . . . Hover . | . . . Flight . | . . . Fastest Speed 50 | 50 120 160 Average Speed 149 | 106 142 163 Slowest Speed 240 | 120 160 240 Overloaded Moves . | . . . Propulsion Burnouts . | . . . Robots Hopped . | . . . Cave-ins Triggered . | . . . Exploration Rate (%) 43 | 3 94 34 Regions Visited 2 Branch Regions 1 Pre-discovered Areas . | . . . Known Exits Taken . | . . . Unknown Exits Taken 2 | 1 1 . Scrap Searched 2 | . . 2 Spaces Dug . | . . . Terrain Destroyed . | . . . Melee . | . . . Projectile . | . . . AOE . | . . . Terrain Rammed . | . . . Walls Destroyed . | . . . Machines Disabled . | . . . Actions | -11 -10 -10 --------- Run | Yrd Mat Sub Total 1517 | 54 891 572 Wait 333 | 1 251 81 Move 1029 | 41 565 423 Hop . | . . . Pick Up 24 | 6 11 7 Fast Attach 10 | 6 3 1 Attach 8 | . 1 7 Detach . | . . . Swap 9 | . 3 6 Drop 9 | . 8 1 Fire 95 | . 49 46 Melee . | . . . Ram . | . . . Kick . | . . . Crush . | . . . Escape Stasis . | . . . Rewire . | . . . Trap . | . . . Miscellaneous . | . . . Route ------- -11/Scrapyard -10/Materials (discovered 6 exits: [*Mat x3] / [*Min x2] / [*Sub]) -10/Subcaves History --------- Turn | Location | Event 9 | -11/Scrapyard | Discovered new exit (range 15) 61 | -11/Scrapyard | Entered Materials 135 | -10/Materials | Discovered new exit (range 8) 252 | -10/Materials | Discovered new exit (range 15) 300 | -10/Materials | Build established: Mutant 310 | -10/Materials | Discovered new exit (range 13) 803 | -10/Materials | Discovered new exit (range 8) 932 | -10/Materials | Discovered new exit (range 16) 1260 | -10/Materials | Discovered new exit (range 6) 1283 | -10/Materials | Entered Subcaves 1353 | -10/Subcaves | Disturbed a concealed Subdweller 1413 | -10/Subcaves | Core integrity fell below 50% 1469 | -10/Subcaves | Lost 6 parts (1p2n1u2w) 2131 | -10/Subcaves | Core integrity fell below 20% 2210 | -10/Subcaves | Destroyed by U8-G8K(R) with Subdweller Beam Cannon Last Messages --------------- 01805_ Acquired 60 matter. 01809_ Lgt. Treads fries itself beyond repair. 01816_ 2K-0K9(u) tweaks Twisted Machinery. 01961_ Acquired 58 matter. 01964_ Acquired 12 matter. 01973_ U8-G8K(R): "SUBMAD!" 02043_ Acquired 11 matter. 02056_ Acquired 10 matter. 02064_ Acquired 15 matter. 02065_ Acquired 6 matter. 02073_ Acquired 10 matter. 02081_ Acquired 15 matter. 02086_ Acquired 12 matter. 02130_ SG-HT7(R) knocked back. 02136_ SG-HT7(R) destroyed. 02139_ Acquired 13 matter. 02143_ Acquired 43 matter. 02146_ Acquired Sub. Power Source. 02158_ Acquired 6 matter. 02172_ Dropped Sub. Optics. Map ----- +----------------------------------------------------+ | ???????????????????????" ### #?????????# | | ?????????????????????????# ## #???????### | | ????????????????????????## ####???## | | ????????????????????????# ##### | | ????????????????????????# ## | | ?????????????????????????# ## | | ?????????????????????????## ## ## | | ??????????????????????????### ## ## ### | | ????????????????????????????## ### ## #?# | | ?????????????????????????????# ## ## ### | | ?????????????????????????????## ## ## #? | | ??????????????????????????????### ### ######? | | ????????????????????????????????# ### #???### | | ????????????????????? ##????????# ## #???# # | | ????????????????????? #####?????# ### #???# | | ????????????????????? #####??### #?## ##???# | | ?????????????????????? ###?#### ###?###???## | | ??????????????????????#% ##?### ###????#### | | ???????????????????? ### ##?# ##???## | | ??????????????????###### ##?## ##???# | | ?????????????????##### ##??# ##??## | | ???????## ????###### ##### = ##?### | | ???????## #### ######! ##### | | ???????###? # R #### ##### | | ??????????? ### ### #### ##?# ## | | ??????????? "### ######@ ###?# ### | | ?????????????### #######% ##### ## | | ????????????### ?????##### ## ##### #### | | ????????????## ??????######### #### #### | | ????????????### %?????????####### ## #### | | ????????????#### ??????????????### ! ##### # | | ?????????????###"?????????????? ### ###?## ## | | ??????????????# "???????????????###### ##??# #? | | ?????????????????????????????????##### ##??# ##? | | ???????????????????????????????????### ##?####?? | | ???????????????????????????????????## =&######### | | ???????????????????????????????????###%& ### ##### | | ???????????????????????????????????##### & ## | | ???????????????????????????????????##### ## | | ???????????????????????????????????### ## | | ???????????????????????????????????## ### | | ???????????????????????????????????## ## #### | | ???????????????????????????????????####### ######? | | ???????????????????????????????????#############?? | | ?????????????????????????????????????????####????? | | ?????????????????????????????????????????????????? | | ?????????????????????????????????????????????????? | | ?????????????????????????????????????????????????? | | ?????????????????????????????????????????????????? | | ?????????????????????????????????????????????????? | +----------------------------------------------------+ Best States ------------- Heat Dissipation 25 Energy Generation 15 Energy Capacity 200 Matter Stores 300 Matter Capacity 300 Sight Range 21 Terrain Scan Density 10 Evasion (%) 55 Recoil Reduction 2 Item Schematics ----------------- None Robot Schematics ------------------ None Fabricated ------------ Nothing Alien Tech Used ----------------- None Achievements -------------- None Challenges ------------ None Game ------ Seed TargetNavigationPlating Manual? 0 Play Time 00:21:48 Cumulative 116.5 hours Start 2024.05.06 @ 22:29:32 End 2024.05.06 @ 22:50:24 Sessions 1 Manual Loads 0 Difficulty Rogue Special Mode None Game No. 77 Rogue 77 Adventurer 0 Explorer 0 Win Type - Total 2 Types 2/0/0/0/0/0/0/0/0 Lore% 39 Gallery% 51 Achievement% 32 Wizard Run 0 Options --------- Layout 0 ASCII 0 Keyboard 0 Movement Numpad Keybinds 0 Fullscreen 1 Font 24/X11 Map View 76x50 Zoom Use 1% Tactical HUD 1 Map Filters NONE Filters NONE Steam 1 RUN: e207461d-5c26-4a26-949b-71117e8d4b51